bitfinex/quotes_ETHUSD_20240703
["timestamp","ask_amount","ask_price","bid_price","bid_amount"]
[1719994446157,0.57530312,3351.3,3351.2,2.626]
[1719994446313,1.24498156,3351.3,3351.2,2.626]
[1719994446650,0.57530312,3351.3,3351.2,2.626]
[1719994447421,1.24497923,3351.3,3351.2,2.626]
[1719994448183,1.24495761,3351.3,3351.2,2.626]
[1719994448455,0.57530627,3351.3,3351.2,2.626]
[1719994448610,1.2449588,3351.3,3351.2,2.626]
[1719994451356,1.24482865,3351.3,3351.2,2.626]
[1719994454672,0.05849287,3351.3,3351.2,2.626]
[1719994454820,1.24486145,3351.3,3351.2,2.626]
[1719994458401,1.24483143,3351.3,3351.2,2.626]
[1719994458672,0.57528376,3351.3,3351.2,2.626]
[1719994458882,0.05849287,3351.3,3351.2,5.61]
[1719994459239,2.4984,3352.5,3351.3,2.98386]
[1719994459438,1.18630712,3352.0,3351.3,2.98386]
[1719994459751,2.4984,3352.5,3351.3,2.98386]
[1719994459752,1.18630712,3351.9,3351.3,2.98386]
[1719994459953,1.18630712,3351.8,3351.3,2.98386]
[1719994460149,1.18630712,3351.7,3351.3,2.98386]
[1719994460459,0.51676097,3351.6,3351.3,2.98386]
[1719994460668,0.05953435,3352.3,3351.4,2.98381]
[1719994460865,1.18625949,3352.2,3351.4,2.98381]
[1719994461174,1.24579384,3352.1,3351.4,2.98381]
[1719994461490,1.18625949,3352.0,3351.4,2.98381]
[1719994461780,1.65737435,3352.4,3351.4,2.98381]
[1719994462079,1.18627756,3352.3,3351.4,2.98381]
[1719994462277,1.24581191,3352.2,3351.4,2.98381]
[1719994462435,1.24581191,3352.2,3351.4,6.02723999]
[1719994462436,1.18627756,3352.1,3351.4,6.02723999]
[1719994462643,1.18627756,3352.0,3351.4,6.02723999]
[1719994462852,1.18627756,3351.9,3351.4,2.98376]
[1719994463050,1.18627756,3351.8,3351.4,2.98376]
[1719994463269,1.18627756,3351.7,3351.4,2.98376]
[1719994463456,1.18626839,3351.6,3351.2,2.626]
[1719994463679,1.24580616,3351.5,3350.7,5.98444]
[1719994463897,1.18627181,3351.4,3350.8,2.626]
[1719994464069,1.18628334,3351.3,3350.8,5.61036]
[1719994464264,0.5167754,3351.2,3350.8,2.626]
[1719994464463,0.5167754,3351.4,3350.8,2.626]
[1719994464676,0.66949709,3351.3,3350.8,2.626]
[1719994464876,0.5167754,3351.2,3350.8,2.626]
[1719994465073,0.05953435,3351.7,3350.8,2.626]
[1719994465264,1.43082003,3351.6,3350.8,2.626]
[1719994465472,1.18631659,3351.5,3351.2,2.626]
[1719994465694,1.18631659,3351.4,3351.2,2.626]
[1719994466001,1.18631659,3351.3,3351.2,2.626]
[1719994466203,1.18631659,3351.3,3350.8,2.626]
[1719994466502,1.18631659,3351.3,3350.5,2.626]
[1719994466503,3.53565094,3351.2,3350.5,2.626]
[1719994466810,1.24239755,3351.1,3350.5,2.626]
[1719994467010,1.24585094,3351.0,3350.5,2.626]
[1719994467162,1.18631659,3350.9,3349.9,5.37231]
[1719994467361,1.3019145,3350.8,3350.0,2.98507]
[1719994467563,1.18631659,3350.7,3350.3,2.626]
[1719994467780,0.05606356,3350.6,3350.5,5.4392]
[1719994467995,3.05953435,3351.5,3350.5,8.0652]
[1719994468204,3.05953435,3351.5,3350.9,2.626]
[1719994468416,1.18633852,3351.4,3350.9,2.626]
[1719994468711,4.34327779,3351.5,3350.9,2.626]
[1719994468712,0.05953435,3351.3,3350.9,2.626]
[1719994468906,0.66946447,3351.2,3350.9,2.626]
[1719994469211,0.5727056,3351.1,3350.9,2.626]
[1719994469383,1.18634457,3351.0,3350.9,2.626]
[1719994470015,1.24217007,3351.0,3350.9,2.626]
[1719994471409,0.0558255,3351.0,3350.9,2.626]
[1719994471603,0.51687857,3351.0,3350.9,2.626]
[1719994471812,0.05588357,3351.0,3350.9,2.626]
[1719994471987,0.51687857,3351.3,3350.9,2.626]
[1719994472171,0.05587777,3351.0,3350.9,2.626]
[1719994472373,0.51687857,3351.0,3350.9,2.626]
[1719994472617,0.57275634,3351.0,3350.9,2.626]
[1719994474725,0.05587777,3351.0,3350.9,2.626]
[1719994474894,0.57274767,3351.0,3350.9,2.626]
[1719994475214,0.57278829,3351.0,3350.9,2.626]
[1719994478124,0.05591839,3351.0,3350.9,2.626]
[1719994478503,0.51687022,3351.3,3350.9,2.626]
[1719994478708,0.0559242,3351.0,3350.9,2.626]
[1719994479235,0.57279442,3351.0,3350.9,2.626]
[1719994479432,0.0559242,3351.0,3350.9,2.626]
[1719994479646,3.05953435,3351.5,3350.9,2.626]
[1719994479941,0.0559242,3351.0,3350.9,2.626]
[1719994480140,0.05953435,3351.3,3350.9,2.626]
[1719994480320,0.0559242,3351.0,3350.9,2.626]
[1719994480848,0.51687204,3351.0,3350.9,2.626]
[1719994481148,0.57279624,3351.0,3350.9,2.626]
[1719994483460,0.0559242,3351.0,3350.9,2.626]
[1719994483763,0.05953435,3351.4,3350.9,2.626]
[1719994483963,0.05406006,3351.0,3350.9,2.626]
[1719994484459,3.0,3351.5,3350.9,2.626]
[1719994484660,0.05406006,3351.0,3350.9,2.626]
[1719994484835,1.18679158,3351.4,3350.9,2.626]
[1719994484836,0.51687115,3351.4,3350.9,2.626]
[1719994485040,0.05406006,3351.0,3350.9,2.626]
[1719994485238,1.18676717,3351.0,3350.9,2.626]
[1719994485436,1.24082723,3351.0,3350.9,2.626]
[1719994487380,0.57093121,3351.0,3350.9,2.626]
[1719994487886,0.05406006,3351.0,3350.9,1.093]
[1719994488039,0.5168746,3351.0,3350.9,1.093]
[1719994488252,0.57093466,3351.0,3350.9,1.093]
[1719994491171,0.05406006,3351.0,3350.9,1.093]
[1719994491373,0.51687517,3351.0,3350.9,1.093]
[1719994491575,0.570912,3351.0,3350.9,1.093]
[1719994492390,0.51687517,3351.0,3350.9,1.093]
[1719994492594,0.05953435,3351.5,3350.9,1.093]
[1719994492595,0.51687517,3351.4,3350.9,1.093]
[1719994492764,0.05405136,3351.0,3350.7,2.427]
[1719994492968,0.05953435,3351.5,3350.9,1.093]
[1719994493174,0.05953435,3351.5,3350.7,2.427]
[1719994493175,0.72397197,3351.4,3350.7,2.427]
[1719994493426,0.05403975,3351.4,3351.3,1.093]
[1719994493708,0.05403975,3351.4,3351.1,2.622]
[1719994493942,0.51683741,3351.3,3351.1,2.622]
[1719994494568,0.05403975,3351.2,3351.1,2.622]
[1719994494851,0.51684009,3351.2,3351.1,2.622]
[1719994495064,0.05410653,3351.2,3351.1,2.622]
[1719994495243,0.5168283,3351.5,3351.1,7.90509]
[1719994495414,7.48,3351.6,3351.2,2.98395]
[1719994495620,0.51680031,3351.5,3351.2,2.98395]
[1719994495818,7.48,3351.6,3351.4,2.622]
[1719994496626,0.5167802,3351.5,3351.4,2.622]
[1719994497141,7.48,3351.6,3351.4,2.622]
[1719994497560,0.5167752,3351.5,3351.4,2.622]
[1719994497931,0.51678332,3351.5,3351.4,2.622]
[1719994498364,0.51677589,3351.5,3351.4,2.622]
[1719994498983,7.48,3351.9,3351.4,2.622]
[1719994499264,1.24120994,3351.8,3351.4,2.622]
[1719994499567,0.05433873,3351.8,3351.4,2.622]
[1719994499740,0.51676128,3351.7,3351.4,2.622]
[1719994499948,0.51676128,3351.6,3351.1,2.98409]
[1719994500254,0.05444902,3351.6,3351.2,2.622]
[1719994500438,0.51676654,3351.5,3351.2,2.622]
[1719994500642,0.57121846,3351.5,3351.2,2.622]
[1719994500864,0.5167726,3351.4,3350.8,5.60636]
[1719994501185,0.05443159,3351.4,3350.8,2.622]
[1719994501325,0.11396594,3351.4,3350.2,8.32515]
[1719994501531,0.51681866,3351.3,3350.6,2.622]
[1719994501761,0.57635301,3351.2,3350.6,2.622]
[1719994501972,0.05440837,3351.2,3350.6,2.622]
[1719994502161,0.05953435,3351.4,3350.6,2.622]
[1719994502328,0.51683043,3351.3,3350.6,2.622]
[1719994502529,0.05440837,3351.3,3350.6,2.622]
[1719994502872,0.51683417,3351.2,3350.6,2.622]
[1719994503057,0.51683417,3351.1,3350.6,2.622]
[1719994503287,0.51683417,3351.3,3350.6,2.622]
[1719994503438,0.05430679,3351.0,3350.6,2.622]
[1719994503637,0.05953435,3351.2,3350.6,2.622]
[1719994503869,0.51684561,3351.1,3350.6,2.622]
[1719994504173,0.51684561,3351.0,3350.7,0.0596829]
[1719994504475,0.05953435,3351.4,3350.9,2.622]
[1719994504673,0.51683,3351.3,3350.9,2.622]
[1719994504983,0.51683,3351.2,3350.9,2.622]
[1719994505139,0.05953435,3351.4,3350.9,2.622]
[1719994505341,0.51682527,3351.3,3350.9,2.622]
[1719994505659,0.05953435,3351.4,3350.9,2.622]
[1719994505870,0.51682473,3351.3,3350.9,2.622]
[1719994506043,0.51682473,3351.2,3350.9,2.622]
[1719994506244,0.51682473,3351.3,3350.9,2.622]
[1719994508145,2.4136,3351.5,3350.9,2.622]
[1719994508146,0.51682473,3351.4,3350.9,2.622]
[1719994508351,2.4136,3351.5,3350.9,2.622]
[1719994508663,0.51682272,3351.4,3350.9,2.622]
[1719994508867,0.51682272,3351.3,3350.9,2.622]
[1719994509069,0.51682272,3351.2,3350.9,2.622]
[1719994509264,2.4136,3351.5,3350.9,2.622]
[1719994509448,0.51682301,3351.4,3350.9,2.622]
[1719994509777,0.51682301,3351.3,3350.9,2.622]
[1719994509957,0.51682301,3351.2,3350.9,2.622]
[1719994510151,0.51682301,3351.4,3350.9,2.622]
[1719994510375,0.51682266,3351.3,3350.9,2.622]
[1719994510578,0.51682266,3351.2,3350.9,2.622]
[1719994511077,2.4136,3351.5,3350.9,2.622]
[1719994511078,0.51682266,3351.4,3350.9,2.622]
[1719994511258,0.05419942,3351.1,3350.9,2.622]
[1719994511454,2.4136,3351.5,3350.9,2.622]
[1719994511642,0.05419942,3351.0,3350.9,2.622]
[1719994511849,0.05953435,3351.4,3350.9,2.622]
[1719994512090,0.05419942,3351.0,3350.9,2.622]
[1719994512299,0.05953435,3351.4,3350.9,2.622]
[1719994512469,0.05419942,3351.0,3350.9,2.622]
[1719994512670,0.05953435,3351.4,3350.9,2.622]
[1719994512869,0.05419942,3351.0,3350.9,2.622]
[1719994513207,0.05953435,3351.4,3350.9,2.622]
[1719994513399,0.51682885,3351.3,3350.9,2.622]
[1719994513711,0.57102827,3351.2,3350.9,2.622]
[1719994513919,0.51682885,3351.2,3350.9,2.622]
[1719994514068,0.05953435,3351.4,3350.9,2.622]
[1719994514069,0.51682885,3351.1,3350.9,2.622]
[1719994514266,0.51682885,3351.3,3350.9,2.622]
[1719994514466,0.05419942,3351.0,3350.9,2.622]
[1719994514679,0.05953435,3351.4,3350.9,2.622]
[1719994514887,0.05419942,3351.0,3350.9,2.622]
[1719994515092,0.51683005,3351.0,3350.9,2.622]
[1719994515306,0.51683005,3351.3,3350.9,2.622]
[1719994515513,0.05419942,3351.0,3350.9,2.622]
[1719994515679,0.51683005,3351.0,3350.9,2.622]
[1719994516205,0.51683005,3351.3,3350.9,2.622]
[1719994516511,0.57102947,3351.2,3350.9,2.622]
[1719994516807,0.51683005,3351.1,3350.9,2.622]
[1719994517099,0.05953435,3351.8,3351.0,0.05968148]
[1719994517271,0.05417039,3351.0,3350.9,5.60622]
[1719994517470,0.05953435,3351.7,3350.9,5.60622]
[1719994517704,0.05417039,3351.0,3350.9,5.60622]
[1719994518003,0.05953435,3351.7,3350.9,5.60622]
[1719994518203,0.05417039,3351.6,3350.9,5.60622]
[1719994518893,0.51681766,3351.5,3350.9,5.60622]
[1719994519202,0.51681766,3351.4,3350.9,5.60622]
[1719994519407,0.51681766,3351.3,3350.9,5.60622]
[1719994519623,0.57102288,3351.2,3350.9,8.59043]
[1719994519910,0.05953435,3351.8,3350.9,8.59043]
[1719994520113,0.05420522,3351.1,3350.9,8.59043]
[1719994520308,0.05953435,3351.8,3350.9,8.59043]
[1719994520497,0.05420522,3351.0,3350.9,5.60621]
[1719994520701,0.05953435,3351.8,3350.9,5.60621]
[1719994520902,0.05420522,3351.0,3350.9,5.60621]
[1719994521208,0.05953435,3351.7,3350.9,5.60621]
[1719994521376,0.51680203,3351.6,3350.9,5.60621]
[1719994521571,0.51680028,3351.5,3350.9,5.60621]
[1719994521772,0.51680028,3351.4,3350.9,5.60621]
[1719994522108,9.8128,3351.9,3350.9,5.60621]
[1719994522109,0.5710055,3351.3,3350.9,5.60621]
[1719994522311,0.51680028,3351.2,3350.9,2.622]
[1719994522675,0.51680028,3351.5,3350.9,2.622]
[1719994523008,0.05421392,3351.1,3350.9,2.622]
[1719994523183,0.51680028,3351.0,3350.9,2.622]
[1719994523692,0.57633463,3351.7,3350.9,2.622]
[1719994523906,0.05420521,3351.0,3350.9,2.622]
[1719994524214,0.57633463,3351.5,3350.9,2.622]
[1719994524374,0.51680028,3351.4,3350.9,2.622]
[1719994524707,0.51682576,3351.3,3350.9,2.622]
[1719994524878,0.51682576,3351.2,3350.9,2.622]
[1719994525074,0.51682576,3351.7,3350.9,2.622]
[1719994525387,0.51682576,3351.6,3351.0,2.98418]
[1719994525711,9.8128,3351.9,3351.3,2.622]
[1719994525712,0.57103097,3351.5,3351.3,2.622]
[1719994525915,0.51682576,3351.4,3351.3,5.28821]
[1719994526212,0.51682576,3351.4,3351.3,7.91021]
[1719994526511,7.48,3351.9,3351.3,10.89412]
[1719994526713,0.51674945,3351.8,3351.7,2.622]
[1719994527712,0.05953435,3352.2,3351.7,2.622]
[1719994527915,0.5167437,3351.8,3351.7,2.622]
[1719994528272,0.5167437,3352.1,3351.7,2.622]
[1719994529318,0.05072472,3352.0,3351.7,2.622]
[1719994529615,0.5167437,3351.9,3351.7,2.622]
[1719994529808,0.5167437,3351.8,3351.7,2.622]
[1719994530026,0.5167437,3351.8,3351.7,5.0668]
[1719994530190,0.56746842,3351.8,3351.7,5.0668]
[1719994530403,0.56746842,3351.8,3351.7,2.622]
[1719994530986,0.05072472,3351.8,3351.7,2.622]
[1719994531220,0.56745954,3351.8,3351.7,2.622]
[1719994531415,0.51673482,3352.2,3351.7,2.622]
[1719994531592,0.51673216,3351.8,3351.7,5.60556]
[1719994531782,0.59840434,3351.8,3351.7,5.60556]
[1719994532416,0.5984039,3351.8,3351.7,5.60556]
[1719994533183,0.5984039,3351.8,3351.7,10.95462]
[1719994533499,7.48,3352.4,3352.0,2.98327]
[1719994533709,0.51666649,3352.3,3352.0,2.98327]
[1719994534029,2.4305,3352.7,3351.8,5.96683]
[1719994534335,0.57620341,3352.6,3351.9,2.98333]
[1719994534483,0.57620803,3352.6,3351.9,2.98333]
[1719994534683,0.51667368,3352.5,3351.9,2.98333]
[1719994534925,0.05953435,3352.4,3351.9,2.98333]
[1719994535125,0.51667368,3352.3,3351.9,2.98333]
[1719994536125,0.51667368,3352.5,3351.9,2.98333]
[1719994536319,0.05953435,3352.4,3351.9,2.98333]
[1719994536626,0.51667368,3352.3,3351.9,2.98333]
[1719994536827,0.51667368,3352.3,3351.8,2.98338]
[1719994537443,2.4305,3352.7,3352.1,2.622]
[1719994537444,0.05953435,3352.6,3352.1,2.622]
[1719994537589,0.51667407,3352.5,3352.1,2.622]
[1719994537936,0.51667407,3352.4,3352.1,2.622]
[1719994538143,0.51667407,3352.5,3352.1,2.622]
[1719994538726,0.05953435,3352.4,3352.1,2.622]
[1719994538887,0.51667407,3352.3,3352.1,2.622]
[1719994539635,2.4305,3352.7,3352.1,2.622]
[1719994539636,0.05953435,3352.6,3352.1,2.622]
[1719994539937,0.51667417,3352.5,3352.3,1.092]
[1719994540233,3.03530852,3352.4,3352.3,1.092]
[1719994540434,2.97577417,3352.4,3352.2,1.092]
[1719994540596,0.05953435,3352.3,3352.2,1.092]
[1719994540996,0.57623509,3352.3,3352.2,1.092]
[1719994541231,0.8797686,3352.3,3351.3,3.0]
[1719994541391,0.05953435,3352.2,3351.4,3.0]
[1719994541591,0.05953435,3352.2,3352.1,1.092]
[1719994541851,0.05953435,3352.2,3351.7,2.621]
[1719994544342,2.4591,3352.4,3352.1,2.621]
[1719994544511,0.51669945,3352.3,3352.1,2.621]
[1719994544704,0.08182309,3352.3,3352.1,2.621]
[1719994544910,0.05953435,3352.7,3352.1,2.621]
[1719994545104,0.08182309,3352.2,3352.1,2.621]
[1719994545309,0.05953435,3352.5,3352.1,2.621]
[1719994545519,0.08182309,3352.2,3352.1,2.621]
[1719994545700,0.05953435,3352.5,3352.1,2.621]
[1719994545894,0.08182309,3352.2,3352.1,2.621]
[1719994546129,0.05953435,3352.7,3352.1,2.621]
[1719994546344,0.08182309,3352.2,3352.1,2.621]
[1719994546495,3.0,3353.0,3352.1,2.621]
[1719994546794,9.8849,3353.1,3352.7,2.621]
[1719994546795,0.51666543,3352.9,3352.7,2.621]
[1719994547001,9.8849,3353.1,3352.7,2.621]
[1719994547233,0.51660852,3353.0,3352.7,2.621]
[1719994547397,0.51660423,3352.9,3352.7,2.621]
[1719994547598,0.36100326,3353.7,3352.7,8.58634]
[1719994547599,0.51660423,3352.8,3352.7,8.58634]
[1719994547838,2.2556,3353.2,3352.0,2.98322]
[1719994548037,1.49016502,3353.1,3352.3,2.621]
[1719994548371,0.51660502,3353.0,3352.3,2.621]
[1719994549731,0.05953435,3352.9,3352.3,2.621]
[1719994549937,0.51660502,3352.8,3352.3,2.621]
[1719994550310,2.2556,3353.2,3352.3,2.621]
[1719994550311,0.05953435,3352.7,3352.3,2.621]
[1719994550500,0.51661502,3352.7,3352.3,2.621]
[1719994550701,1.03309435,3353.1,3352.3,2.621]
[1719994550949,0.51661767,3353.0,3352.3,2.621]
[1719994551238,0.57615202,3352.9,3352.3,2.621]
[1719994551403,0.51661767,3352.8,3352.3,2.621]
[1719994551599,0.51661767,3352.7,3352.3,2.621]
[1719994551801,0.05953435,3352.9,3352.3,2.621]
[1719994552136,0.51661228,3352.8,3352.3,2.621]
[1719994552340,0.51661228,3352.7,3352.3,2.621]
[1719994552547,0.08214509,3352.7,3352.3,2.621]
[1719994552901,2.2556,3353.2,3352.3,2.621]
[1719994553142,0.08214509,3352.6,3352.3,2.621]
[1719994553341,2.2556,3353.2,3352.3,2.621]
[1719994553561,0.51661636,3353.1,3352.7,2.621]
[1719994553731,0.51661154,3353.0,3352.7,2.621]
[1719994554058,0.05953435,3353.0,3352.7,2.621]
[1719994554367,0.59874161,3352.9,3352.7,2.621]
[1719994554664,0.51661102,3352.8,3352.7,2.621]
[1719994555258,0.08213059,3352.8,3352.7,2.621]
[1719994555558,0.05953435,3353.1,3352.7,2.621]
[1719994555559,0.51661102,3352.9,3352.7,2.621]
[1719994555721,0.05953435,3353.1,3352.7,2.621]
[1719994555722,0.59874161,3352.8,3352.7,2.621]
[1719994556980,0.08213059,3352.8,3352.7,2.621]
[1719994557358,0.05953435,3353.1,3352.7,2.621]
[1719994557539,0.59874163,3352.8,3352.7,2.621]
[1719994557744,0.51661104,3352.8,3352.7,2.621]
[1719994557984,0.59874163,3352.8,3352.7,2.621]
[1719994558585,0.51661104,3352.8,3352.7,2.621]
[1719994559585,0.05953435,3353.2,3352.7,2.621]
[1719994559951,0.08213059,3353.1,3352.7,2.621]
[1719994560889,0.59872472,3353.1,3352.7,2.621]
[1719994561182,0.08213059,3353.1,3352.7,2.621]
[1719994561376,0.51659413,3353.0,3352.7,2.621]
[1719994561585,0.51659413,3352.9,3352.7,2.621]
[1719994561747,0.51659413,3352.8,3352.7,2.621]
[1719994562449,0.05953435,3353.2,3352.7,2.621]
[1719994562646,0.51658062,3353.1,3352.7,2.621]
[1719994562872,0.05953435,3353.0,3352.7,2.621]
[1719994563081,0.57611531,3353.0,3352.7,2.621]
[1719994563252,0.51658096,3352.9,3352.7,2.621]
[1719994563457,0.59597386,3352.9,3352.7,2.621]
[1719994563650,0.51658096,3352.8,3352.7,2.621]
[1719994564292,0.0793929,3352.8,3352.7,2.621]
[1719994564689,0.05953435,3353.0,3352.7,2.621]
[1719994564876,0.0793929,3352.8,3352.7,2.621]
[1719994565264,0.07841957,3352.8,3352.7,2.621]
[1719994565587,0.05953435,3353.0,3352.7,2.621]
[1719994565795,0.07841957,3352.8,3352.7,2.621]
[1719994565989,0.05953435,3353.0,3352.7,2.621]
[1719994566153,0.07841957,3352.8,3352.7,2.621]
[1719994566360,0.05953435,3353.0,3352.7,2.621]
[1719994566659,0.51658176,3352.9,3352.7,2.621]
[1719994566858,0.05953435,3353.0,3352.7,2.621]
[1719994567186,0.07841957,3352.8,3352.7,2.621]
[1719994567386,0.05953435,3353.0,3352.7,2.621]
[1719994567591,0.07841957,3352.8,3352.7,2.621]
[1719994567785,0.51657633,3352.9,3352.7,1.091]
[1719994567978,0.0786313,3352.8,3352.7,1.091]
[1719994568742,7.48,3353.3,3352.7,1.091]
[1719994569041,0.0786313,3352.8,3352.6,5.30873]
[1719994569194,7.48,3353.3,3352.7,1.091]
[1719994569401,0.51656272,3353.2,3353.1,1.091]
[1719994569591,7.48,3353.3,3353.1,1.091]
[1719994569788,0.51655655,3353.2,3352.9,2.619]
[1719994570135,0.51655655,3353.1,3352.9,2.619]
[1719994570291,0.51655655,3353.6,3352.9,2.619]
[1719994570494,0.5760909,3353.5,3352.9,2.619]
[1719994570805,0.51655655,3353.4,3352.9,2.619]
[1719994571021,0.51655655,3353.3,3352.9,2.619]
[1719994571227,0.51655655,3353.2,3352.9,2.619]
[1719994571428,0.51655655,3353.1,3352.9,2.619]
[1719994571642,0.51655655,3353.0,3352.9,2.619]
[1719994571942,0.51655655,3353.0,3351.9,2.386]
[1719994572094,2.8849909,3352.9,3352.1,2.619]
[1719994572309,0.57614961,3352.8,3352.1,2.619]
[1719994572509,0.57614961,3352.7,3352.1,2.619]
[1719994572712,0.57614961,3352.7,3351.5,2.98368]
[1719994572713,2.87861526,3352.6,3351.7,2.619]
[1719994572926,0.57614961,3352.5,3351.7,5.60255]
[1719994573151,0.51661526,3352.4,3351.7,5.60255]
[1719994575747,0.51666526,3352.3,3351.7,5.60255]
[1719994575948,0.07848918,3352.3,3351.7,2.619]
[1719994576124,0.51666575,3352.2,3351.7,2.619]
[1719994576449,0.05953435,3352.5,3352.1,2.619]
[1719994576642,0.51666466,3352.4,3352.1,2.619]
[1719994576843,0.51666466,3352.3,3352.1,2.619]
[1719994577057,0.05953435,3352.5,3352.1,2.619]
[1719994577234,0.51665416,3352.4,3352.1,2.619]
[1719994577547,0.51665416,3352.3,3352.1,2.619]
[1719994577746,0.51665416,3352.4,3352.1,2.619]
[1719994577945,0.51665458,3352.3,3352.1,2.619]
[1719994578272,0.05953435,3352.5,3352.1,2.619]
[1719994578555,0.51665446,3352.4,3352.1,2.619]
[1719994578752,0.51665446,3352.3,3352.1,2.619]
[1719994578915,0.05953435,3352.5,3352.1,2.619]
[1719994579237,0.5166552,3352.4,3352.1,2.619]
[1719994579442,0.5166552,3352.3,3352.1,2.619]
[1719994579749,0.05953435,3352.5,3352.1,2.619]
[1719994579954,0.51665439,3352.4,3352.1,2.619]
[1719994580179,0.51665439,3352.3,3352.1,2.619]
[1719994580474,7.48,3352.8,3352.1,2.619]
[1719994580619,0.57618575,3352.7,3352.1,2.619]
[1719994580813,0.5166514,3352.6,3352.1,2.619]
[1719994581009,0.05953435,3352.7,3352.1,2.619]
[1719994581010,0.5166514,3352.5,3352.1,2.619]
[1719994581223,0.5166514,3352.4,3352.1,2.619]
[1719994581524,7.48,3352.8,3352.1,2.619]
[1719994581525,7.48,3352.8,3352.2,3.04273789]
[1719994581717,0.51663667,3352.7,3352.2,2.98308]
[1719994581913,10.48,3353.2,3352.6,2.619]
[1719994582114,0.51659604,3353.1,3352.6,2.619]
[1719994582361,0.05953435,3353.5,3353.0,2.619]
[1719994582570,3.05953435,3353.5,3353.0,2.619]
[1719994582747,0.51657101,3353.4,3353.0,2.619]
[1719994582920,0.51657101,3353.3,3353.0,2.619]
[1719994583116,0.51657101,3353.2,3353.0,2.619]
[1719994583495,0.51657101,3353.1,3353.0,2.619]
[1719994585047,7.48,3353.6,3353.0,2.619]
[1719994585256,0.5165387,3353.5,3353.0,2.619]
[1719994585620,0.5165308,3353.4,3353.0,2.619]
[1719994585939,0.5165308,3353.3,3353.0,2.619]
[1719994586155,0.5165308,3353.4,3353.0,2.619]
[1719994586341,0.51652988,3353.3,3353.0,2.619]
[1719994586525,0.05953435,3353.5,3353.0,2.619]
[1719994586727,0.5165296,3353.4,3353.0,2.619]
[1719994586926,0.5165296,3353.3,3353.0,2.619]
[1719994587135,0.5165296,3353.4,3353.0,5.60135]
[1719994587369,0.5165296,3353.3,3353.2,2.98221]
[1719994588043,7.48,3353.6,3353.0,5.60135]
[1719994588357,0.51652194,3353.5,3353.1,2.98224]
[1719994588536,7.48,3353.6,3353.1,2.98224]
[1719994588748,0.51652304,3353.4,3353.1,2.98224]
[1719994588923,7.48,3353.6,3353.1,2.98224]
[1719994589126,0.51652329,3353.5,3353.1,2.98224]
[1719994589329,0.51652329,3353.4,3353.1,2.98224]
[1719994589567,7.48,3353.6,3353.1,2.98224]
[1719994589867,0.07615147,3353.3,3353.1,2.98224]
[1719994590032,0.51650043,3353.5,3353.1,2.98224]
[1719994590232,0.07615147,3353.2,3353.1,2.98224]
[1719994590461,7.48,3353.6,3353.1,2.98224]
[1719994590669,0.07615147,3353.2,3353.1,2.98224]
[1719994590879,7.48,3354.0,3353.3,2.98212]
[1719994591076,0.51649357,3353.9,3353.4,2.619]
[1719994591259,0.51649357,3353.8,3353.4,2.619]
[1719994591445,0.51649357,3353.7,3353.4,2.619]
[1719994591770,0.05953435,3353.8,3353.0,2.619]
[1719994591976,2.4261,3354.1,3353.0,2.619]
[1719994591977,0.59222077,3353.6,3353.0,2.619]
[1719994592273,0.05953435,3354.0,3353.0,5.60133]
[1719994592460,0.51648232,3353.9,3353.0,5.60133]
[1719994592683,0.51648232,3353.8,3353.1,2.98231]
[1719994592853,0.51648232,3353.7,3353.1,2.98231]
[1719994593169,0.51648232,3353.6,3353.1,2.98231]
[1719994593341,0.05953435,3354.0,3353.2,0.05963658]
[1719994593564,0.0757583,3353.5,3353.2,0.05963658]
[1719994593758,0.05953435,3354.0,3353.2,0.05963658]
[1719994593958,0.0757583,3353.4,3353.2,0.05963658]
[1719994594198,0.05953435,3354.0,3353.2,0.05963658]
[1719994594401,0.0757583,3353.3,3353.2,0.05963658]
[1719994594563,7.53953435,3354.0,3353.2,0.05963658]
[1719994594895,0.0757583,3353.3,3353.2,3.04185658]
[1719994595098,2.4261,3354.1,3353.2,3.04185658]
[1719994595399,0.59222375,3354.0,3353.3,0.05963373]
[1719994595617,0.0757583,3354.0,3353.3,0.05963373]
[1719994595777,0.51646543,3353.9,3353.3,0.05963373]
[1719994596097,0.51646543,3353.8,3353.3,0.05963373]
[1719994596301,0.0757583,3353.8,3353.4,2.619]
[1719994596494,0.0757583,3353.8,3353.4,2.67863374]
[1719994596801,2.4261,3354.1,3353.4,2.67863374]
[1719994596998,0.0757583,3353.7,3353.4,2.67863374]
[1719994597168,2.4261,3354.1,3353.4,2.67863374]
[1719994597502,0.07334029,3353.6,3353.5,2.98194]
[1719994597703,3.05953435,3354.3,3353.5,2.98194]
[1719994597899,0.51644438,3354.2,3353.5,2.98194]
[1719994598208,0.07081143,3354.2,3353.5,2.98194]
[1719994598512,0.51644301,3354.1,3353.5,2.98194]
[1719994598713,0.07081143,3354.2,3353.5,2.98194]
[1719994598885,0.51644313,3354.1,3353.4,2.619]
[1719994599087,0.51644313,3354.0,3353.4,2.619]
[1719994599280,0.51644313,3354.0,3353.4,5.60104]
[1719994599672,0.07081143,3353.9,3353.4,5.60104]
[1719994600080,3.05953435,3354.3,3353.4,5.60104]
[1719994600280,0.07081143,3353.8,3353.4,5.60104]
[1719994600481,3.05953435,3354.3,3353.4,5.60104]
[1719994600718,0.07081143,3353.7,3353.4,5.60104]
[1719994600879,3.05953435,3354.3,3353.4,5.60104]
[1719994601081,0.5164456,3354.2,3353.4,5.60104]
[1719994601284,0.5164456,3354.1,3353.4,5.60104]
[1719994601475,0.51644615,3354.0,3353.4,5.60104]